Cogmind - Beta 13 @@@ ROGUE MODE // 2024.03.09 @ 19:25:32 Player: Ferns Result: Destroyed by G-34 Mercenary with Small Laser Performance ------------- Evolutions (1) 500 Regions Visited (3) 600 Robots Destroyed (50) 250 Value Destroyed (1429) 1429 Prototype IDs (4) 80 Alien Tech Used (0) 0 Bonus (131) 131 TOTAL SCORE: 2990 Bonus ------- High Alert Combat Kills 131 Cogmind --------- Core Integrity 0/400 Matter 280/300 Energy 25/265 System Corruption 12% Temperature Cool (72) Movement Core (1900) Ox37 Location -9/Storage Parts ------- > --- POWER (1) -------- Improved Ion Engine > --- PROPULSION (3) --- (None) > --- UTILITY (3) ------ Improved Heat Sink Large Storage Unit Huge Storage Unit > --- WEAPON (2) ------- EM Pulse Cannon > --- INVENTORY (25) --- Large Battery (200) High-capacity Matter Pod (200) Trap Scanner Visual Processing Unit Sensor Array Improved EM Shotgun Particle Gun EM Pulse Cannon Heavy Assault Rifle Rocket Launcher Peak State ------------ > --- POWER ------------ Heavy Ion Engine > --- PROPULSION ------- Aluminum Leg Improved Aluminum Leg Wheel > --- UTILITY ---------- Large Storage Unit Signal Interpreter Hardened Light Armor Plating > --- WEAPON ----------- EM Pulse Cannon Heavy Assault Rifle > --- INVENTORY -------- Improved Ion Engine Improved Ion Engine Improved Heat Sink Medium Storage Unit Large Battery High-capacity Matter Pod Trap Scanner Seismic Detector Light Armor Plating Particle Gun EM Pulse Cannon EM Pulse Cannon EM Pulse Cannon Heavy Assault Rifle Rocket Launcher [Rating: 19] Favorites ----------- Power Heavy Ion Engine Engine Heavy Ion Engine Propulsion Aluminum Leg Leg Aluminum Leg Wheel Wheel Utility Signal Interpreter Device Seismic Detector Storage Large Storage Unit Processor Signal Interpreter Protection Hardened Light Armor Plating Weapon Heavy Assault Rifle Energy Gun Medium Laser Energy Cannon EM Pulse Cannon Ballistic Gun Heavy Assault Rifle Ballistic Cannon Light Cannon Launcher Rocket Launcher Build | -11 -10 -9 -9 ------- Run | Yrd Mat Mat Sto Slots Evolved 2 | . . 2 . Power . | . . . . Propulsion 1 | . . 1 . Utility 1 | . . 1 . Weapon . | . . . . Parts Attached 40 | 8 1 15 16 Power 6 | 1 . 2 3 Engine 6 | 1 . 2 3 Core . | . . . . Reactor . | . . . . Propulsion 8 | 2 . 3 3 Treads . | . . . . Leg 3 | . . 2 1 Wheel 5 | 2 . 1 2 Hover . | . . . . Flight . | . . . . Utility 9 | 2 . 4 3 Device 2 | 1 . . 1 Storage 4 | 1 . 1 2 Processor 1 | . . 1 . Hackware . | . . . . Protection 2 | . . 2 . Artifact . | . . . . Weapon 17 | 3 1 6 7 Energy Gun 4 | 2 . 1 1 Energy Cannon 5 | . . 2 3 Ballistic Gun 6 | 1 . 3 2 Ballistic Cannon 1 | . 1 . . Launcher 1 | . . . 1 Special Weapon . | . . . . Impact Weapon . | . . . . Slashing Weapon . | . . . . Piercing Weapon . | . . . . Special Melee Weapon . | . . . . Unidentified Prototypes 2 | . . . 2 Parts Lost 24 | . 7 2 15 Power 4 | . 1 1 2 Propulsion 8 | . 2 . 6 Utility 3 | . 1 . 2 Weapon 9 | . 3 1 5 Highest Loss Streak 7 | . 7 1 7 To Critical Strikes . | . . . . Average Slot Usage (%) 82 | . 83 73 89 Engine 10 | . 12 9 11 Leg 15 | . . 15 18 Wheel 6 | . 21 4 5 Device 1 | . 10 . . Storage 11 | . 14 11 11 Processor 9 | . . 9 10 Protection 8 | . . 7 10 Energy Gun 2 | . 11 2 . Energy Cannon 7 | . . 5 9 Ballistic Gun 9 | . 10 8 10 Naked Turns . | . . . . Heaviest Build 101 | 15 15 42 101 Greatest Support 32 | 26 26 23 32 Greatest Overweight (x) 10 | . 3 4 10 Average Overweight (x) 1 | . . 1 3 Largest Inventory Capacity 25 | 8 8 15 25 Average Capacity 13 | 7 8 9 18 Most Carried 17 | 4 7 15 17 Average Carried 10 | 2 5 9 14 Final Capacity 25 | 8 8 15 25 Final Carried 14 | 3 5 14 10 Class Distribution -------------------- 88% | Mutant 11% | Scavenger-Mutant Dominant Class ---------------- Mutant | -10/Materials Mutant | -9/Materials Mutant | -9/Storage Resources | -11 -10 -9 -9 ----------- Run | Yrd Mat Mat Sto Matter Collected 1085 | 280 . 289 516 Remotely . | . . . . Salvage Created 2157 | 121 72 489 1475 Parts 119 | 6 3 36 74 Haulers Intercepted 2 | . . . 2 Recyclers Shooed 3 | . . . 3 Parts Field Recycled . | . . . . Retrieved Matter . | . . . . Parts Self-Destructed . | . . . . Prevented . | . . . . Kills | -11 -10 -9 -9 ------- Run | Yrd Mat Mat Sto Combat Hostiles Destroyed 37 | . 2 10 25 Guns 14 | . 1 2 11 Cannons 22 | . 1 8 13 Classes Destroyed 10 | 2 1 4 3 Tunneler 2 | 1 . 1 . Hauler 2 | . . . 2 Recycler 4 | 1 . . 3 Operator 2 | . . 1 1 Watcher 3 | . . 1 2 Swarmer 6 | . . 3 3 Grunt 17 | . 2 2 13 Brawler 1 | . . . 1 Duelist 1 | . . . 1 Sentry 12 | . . 5 7 Best Kill Streak 13 | 2 2 4 13 Combat Bots Only 11 | . 2 3 11 Max Kills in Single Turn 2 | 1 1 1 2 Gunslinging . | . . . . Exploded . | . . . . Melee . | . . . . Uniques/NPCs Destroyed . | . . . . Combat | -11 -10 -9 -9 -------- Run | Yrd Mat Mat Sto Hostile Shots Fired 304 | . 74 69 161 Missed 77 | . 18 16 43 Damage Taken 3063 | . 700 688 1675 Core 600 | . 196 175 229 Absorbed by Shields . | . . . . Core Remaining (%) 60 | 100 21 . . Volleys Fired 134 | 6 13 33 82 Largest 2 | 2 2 2 2 Hottest 90 | 90 85 88 86 Shots Fired 234 | 12 25 58 139 Gun 150 | 12 19 39 80 Cannon 82 | . 6 19 57 Launcher 2 | . . . 2 Special . | . . . . Kinetic 124 | . 13 33 78 Thermal 30 | 12 12 6 . Explosive 2 | . . . 2 Electromagnetic 78 | . . 19 59 Robot Hit Streak 16 | 3 10 6 16 Robot Miss Streak 3 | 2 3 2 3 Penetration Max . | . . . . Secondary Targets . | . . . . Shots Hit Robots 150 | 7 16 33 94 Core Hits 61 | 3 4 14 40 Critical Kills . | . . . . Critical Parts Destroyed 1 | . . 1 . Critical Strikes 1 | . . 1 . Destroy 1 | . . 1 . Melee Attacks . | . . . . Impact . | . . . . Slashing . | . . . . Piercing . | . . . . Sneak Attacks . | . . . . Combat Hostiles . | . . . . Follow-up Attacks . | . . . . Damage Inflicted 3129 | 82 225 579 2243 Guns 1308 | 82 168 286 772 Cannons 1588 | . 57 293 1238 Explosions 233 | . . . 233 Melee . | . . . . Ramming . | . . . . Kinetic 1114 | . 115 255 744 Thermal 456 | 82 110 31 233 Explosive . | . . . . Electromagnetic 1559 | . . 293 1266 Impact . | . . . . Slashing . | . . . . Piercing . | . . . . Highest Corruption 12 | . . . 12 Average Corruption 9 | . . . 9 Corruption Purged . | . . . . Corruption Blocked . | . . . . Effects 1 | . . . 1 Matter Fused 1 | . . . 1 Overload Shots . | . . . . Overflow Damage 40 | . . . 40 Projectiles 30 | . . . 30 Explosions 10 | . . . 10 Melee . | . . . . Knockbacks 1 | . 1 . . Impact . | . . . . Kinetic 1 | . 1 . . Secondary . | . . . . Self-Inflicted Damage 27 | . . . 27 Shots 1 | . . . 1 Rammed . | . . . . Targets Rammed . | . . . . Kicked . | . . . . Crushed . | . . . . Highest Temperature 449 | 180 449 144 346 Average Temperature 126 | 93 221 48 137 Received Heat Transfer 1239 | . 399 252 588 Effects 5 | . 3 . 2 Shutdowns 2 | . 1 . 1 Energy Bleed 2 | . 1 . 1 Damage (minor) 1 | . 1 . . Siege Activations . | . . . . Robots Corrupted 1 | . . . 1 Combat Hostiles 1 | . . . 1 Parts Fried 6 | . . . 6 Impact Corruptions . | . . . . Robots Melted . | . . . . Combat Hostiles . | . . . . Parts Melted 2 | . 1 . 1 Heat Transferred 1010 | 223 333 74 380 Parts Sabotaged . | . . . . Parts Stolen . | . . . . Parts Stripped . | . . . . Power Chain Reactions 4 | . . . 4 Alert | -11 -10 -9 -9 ------- Run | Yrd Mat Mat Sto Peak Influence 620 | 10 31 278 620 Initial 79 | . 6 . 79 Average 248 | 4 7 96 436 Maximum Alert Level 2 | . . 1 2 Low Security (%) 55 | 100 100 94 12 Level 1 8 | . . 5 12 Level 2 36 | . . . 74 Level 3 . | . . . . Level 4 . | . . . . Level 5 . | . . . . High Security . | . . . . Max Security . | . . . . Squads Dispatched 4 | . 1 . 3 Investigation 1 | . 1 . . Extermination . | . . . . Reinforcement 1 | . . . 1 Assault 2 | . . . 2 Garrison . | . . . . Intercept . | . . . . Searches Triggered . | . . . . Construction Impeded . | . . . . Haulers Reinforced . | . . . . Active Scanning Responses . | . . . . Cargo Convoy Interrupts . | . . . . Stealth | -11 -10 -9 -9 --------- Run | Yrd Mat Mat Sto Distress Signals 3 | . . 1 2 Communications Jammed . | . . . . Distress Signals . | . . . . Times Spotted 59 | . 5 14 40 Peak Tracking Total 9 | . 5 4 9 Tactical Retreats 4 | . . 1 3 Traps | -11 -10 -9 -9 ------- Run | Yrd Mat Mat Sto Traps Triggered 1 | . 1 . . Indirectly . | . . . . Trap Hack Attempts . | . . . . Triggered . | . . . . Disarmed . | . . . . Reprogrammed . | . . . . Reused . | . . . . Traps Extracted . | . . . . Installed . | . . . . Triggered . | . . . . Machines | -11 -10 -9 -9 ---------- Run | Yrd Mat Mat Sto Machines Disabled 2 | . . 1 1 Max in Single Turn 1 | . . 1 1 Garrison Access 1 | . . . 1 Machines Repaired . | . . . . Machines Dismantled . | . . . . Machines Sabotaged . | . . . . Overloaded Fab Kills . | . . . . Hacking | -11 -10 -9 -9 --------- Run | Yrd Mat Mat Sto Machines Accessed 4 | . 1 1 2 Terminals 3 | . 1 1 1 Fabricators . | . . . . Repair Stations . | . . . . Recycling Units . | . . . . Scanalyzers . | . . . . Garrison Access 1 | . . . 1 Total Hacks 8 | . 1 2 5 Successful 5 | . 1 2 2 Failed 3 | . . . 3 Catastrophic 1 | . . . 1 Database Lockouts . | . . . . Manual . | . . . . Terminals 6 | . 1 2 3 Fabricators . | . . . . Repair Stations . | . . . . Recycling Units . | . . . . Scanalyzers . | . . . . Garrison Access 2 | . . . 2 Terminal Hacks 4 | . 1 2 1 Prototype ID Bank 1 | . 1 . . Open Door 1 | . . . 1 Scanalyzer Index 1 | . . 1 . Dispatch Records 1 | . . 1 . Fabricator Hacks . | . . . . Repair Station Hacks . | . . . . Recycling Unit Hacks . | . . . . Scanalyzer . | . . . . Garrison Access Hacks 1 | . . . 1 Seal Access 1 | . . . 1 Unauthorized Hacks . | . . . . Terminals . | . . . . Fabricators . | . . . . Repair Stations . | . . . . Recycling Units . | . . . . Scanalyzers . | . . . . Garrison Access . | . . . . Data Cores Recovered 1 | . . 1 . Used . | . . . . Hacking Detections 3 | . 1 . 2 Full Trace Events . | . . . . Feedback Events . | . . . . Feedback Blocked . | . . . . Robot Schematics Acquired . | . . . . Robots Built . | . . . . Authchips . | . . . . Time . | . . . . Total Robot Build Rating . | . . . . Part Schematics Acquired . | . . . . Parts Built . | . . . . Authchips . | . . . . Time . | . . . . Total Part Build Rating . | . . . . Parts Repaired . | . . . . Time . | . . . . Parts Recycled . | . . . . Recycled Matter . | . . . . Retrieved Matter . | . . . . Retrieved Components . | . . . . Parts Scanalyzed . | . . . . Part Schematics Acquired . | . . . . Parts Damaged . | . . . . Bothacking | -11 -10 -9 -9 ------------ Run | Yrd Mat Mat Sto Used RIF Installer . | . . . . Robots Hacked . | . . . . Non-combat . | . . . . Combat . | . . . . Robot Hacks Applied . | . . . . Relay Couplers Released . | . . . . Fabnet Peak Effective % . | . . . . Robots Rewired . | . . . . Allies Hacked . | . . . . Hacks Repelled . | . . . . Allies | -11 -10 -9 -9 -------- Run | Yrd Mat Mat Sto Total Allies . | . . . . Largest Group . | . . . . Highest-Rated Group . | . . . . Highest-Rated Ally . | . . . . Total Orders . | . . . . Ally Attacks . | . . . . Total Damage . | . . . . Kills . | . . . . Allies Corrupted . | . . . . Allies Melted . | . . . . Intel | -11 -10 -9 -9 ------- Run | Yrd Mat Mat Sto Robot Analysis Total . | . . . . Derelict Logs Recovered . | . . . . Drone Launches . | . . . . Drone Recoveries . | . . . . Exploration | -11 -10 -9 -9 ------------- Run | Yrd Mat Mat Sto Turns Passed 1830 | 79 182 682 887 Spaces Moved 875 | 48 141 396 290 Core 91 | 4 25 62 . Treads . | . . . . Legs 313 | . . 193 120 Wheels 471 | 44 116 141 170 Hover . | . . . . Flight . | . . . . Fastest Speed 50 | 50 90 100 140 Average Speed 148 | 88 94 127 212 Slowest Speed 820 | 100 200 190 820 Overloaded Moves . | . . . . Propulsion Burnouts . | . . . . Robots Hopped . | . . . . Cave-ins Triggered . | . . . . Exploration Rate (%) 29 | 5 26 39 46 Regions Visited 3 Branch Regions 1 Pre-discovered Areas . | . . . . Known Exits Taken 1 | . . 1 . Unknown Exits Taken 2 | 1 1 . . Scrap Searched . | . . . . Spaces Dug . | . . . . Terrain Destroyed 30 | . . . 30 Melee . | . . . . Projectile . | . . . . AOE 30 | . . . 30 Terrain Rammed . | . . . . Walls Destroyed . | . . . . Machines Disabled . | . . . . Actions | -11 -10 -9 -9 --------- Run | Yrd Mat Mat Sto Total 1173 | 71 165 517 420 Wait 60 | . 6 39 15 Move 872 | 47 140 395 290 Hop . | . . . . Pick Up 53 | 10 4 27 12 Fast Attach . | . . . . Attach 29 | 7 1 10 11 Detach . | . . . . Swap 11 | 1 . 5 5 Drop 14 | . 1 8 5 Fire 134 | 6 13 33 82 Melee . | . . . . Ram . | . . . . Kick . | . . . . Crush . | . . . . Escape Stasis . | . . . . Rewire . | . . . . Trap . | . . . . Miscellaneous . | . . . . Route ------- -11/Scrapyard -10/Materials -9/Materials (discovered 2 exits: [*Mat] / *Sto) -9/Storage History --------- Turn | Location | Event 11 | -11/Scrapyard | Discovered new exit (range 15) 80 | -11/Scrapyard | Entered Materials 156 | -10/Materials | Discovered new exit (range 16) 233 | -10/Materials | Core integrity fell below 50% 262 | -10/Materials | Entered another Materials area 262 | -9/Materials | Evolved 2 slots: Propulsion x1, Utility x1 273 | -9/Materials | Lost 7 parts (1p2n1u3w) 313 | -9/Materials | Build established: Mutant 636 | -9/Materials | Discovered new exit (range 10) 901 | -9/Materials | Discovered new exit (range 4) 911 | -9/Materials | Identified exit to Storage 944 | -9/Materials | Entered Storage 1162 | -9/Storage | Core integrity fell below 50% 1268 | -9/Storage | Destroyed 11 combat bots 1744 | -9/Storage | First assault squad dispatched 1805 | -9/Storage | Lost 3 parts (1n2w) 1816 | -9/Storage | Core integrity fell below 20% 1820 | -9/Storage | System corruption reached 10% 1831 | -9/Storage | Destroyed by G-34 Mercenary with Small Laser Last Messages --------------- U-05 Engineer lays Concrete. K-01 Serf collects debris. Signal Interpreter destroyed. System corrupted by crushing effect (+3). U-05 Engineer lays Concrete. Imp. Ion Engine destroyed. U-05 Engineer lays Concrete. K-01 Serf collects debris. B-36 Bruiser suffers critical hit (Burn). Imp. Assault Rifle destroyed. U-05 Engineer lays Concrete. Knocked back. Acquired 25 matter. U-05 Engineer lays Concrete. M-13 Machinist repairs B-36 Bruiser. G-34 Mercenary destroyed. K-01 Serf collects debris. U-05 Engineer lays Concrete. U-05 Engineer builds a Wall. Critical hit (Burn: +37). Map ----- +----------------------------------------------------+ | ???????????#"####### ###??# """ # " # | | ????????????" % ###### """ # "G" [![# | | ????????????" % %% +! """ # " " [![# | | ????????????"# #####[ ###### !# [! # | | ????????????######### %####??# """ # ] # | | ??????????????###???# %##????# """ # # | | ????????????????????# #?????# """ # [%* # | | ????????????????????# #?????# ####!###### | | ???????????##########% ##????###### ###??###????? | | ???????? !## #?????????###???????????? | | ??????? + ^ %% #???????????????????????? | | ??????????# % #???????????????????????? | | ??????????# #???????????????????????? | | ??????????#""" """ ##???????????????????????? | | ??????????#"R """ ####?????????????????????? | | ??????????#""" """ + #?????????????????????? | | ??????????+ # "?????????????????????? | | ??????????# ! #?? ???????????????????? | | ??????????##+#####+## #???? #????????????????? | | ???????????# ??? ?# #?????? #????????????????? | | ???????????????"" ??# %#????????????????????????? | | ?????????????""""???# #????????????????????????? | | ?????????????"""???## %##???????????????????????? | | ???????????????????# #############???????????? | | ???????????????????# k m ????????? | | ???????????????????# /bu@*a ????????? | | ???????????????????#=m%g######## ????????? | | ???????????????????#;gg##########???#???????????? | | ???????????????????# i[/ #???????????????? | | ???????????????????# %= #???????????????? | | ???????????????????# #???????????????? | | ???????????????????# #???????????????? | | ???????????????????# #???????????????? | | ???????????????????###########/##???????????????? | | ???????????????????# ## #????????????????? | | ???????????????????# ## #????????????????? | | ???????????????????# """/## ####?????????????? | | ???????????????????# """%# % #?????????????? | | ???????????????????# """ #% #?????????????? | | ???????????????????# """ "% T #?????????????? | | ???????????????????# """%#%= #?????????????? | | ???????????????????# %#* #?????????????? | | ???????????????????# % ## ##?????????????? | | ???????????????????# ######### #??????????????? | | ???????????????????##????????# #??????????????? | | ?????????????????????????????# #??????????????? | | ?????????????????????????????# #??????????????? | | ?????????????????????????????# #??????????????? | | ?????????????????????????????# #??????????????? | | ?????????????????????????????#% #??????????????? | +----------------------------------------------------+ Best States ------------- Heat Dissipation 42 Energy Generation 14 Energy Capacity 280 Matter Stores 300 Matter Capacity 300 Sight Range 16 Terrain Scan Density 10 Armor Coverage 150 Evasion (%) 55 Item Schematics ----------------- None Robot Schematics ------------------ None Fabricated ------------ Nothing Alien Tech Used ----------------- None Achievements -------------- Power Corrupts Significant Disruption Challenges ------------ None Game ------ Seed BurstNavigationShotgun Manual? 0 Play Time 00:19:00 Cumulative 2.5 hours Start 2024.03.09 @ 18:40:47 End 2024.03.09 @ 19:25:32 Sessions 1 Manual Loads 0 Difficulty Rogue Special Mode None Game No. 3 Rogue 2 Adventurer 1 Explorer 0 Win Type - Total 0 Types 0/0/0/0/0/0/0/0/0 Lore% 4 Gallery% 9 Achievement% 10 Wizard Run 0 Options --------- Layout 2 ASCII 0 Keyboard 0 Movement Mouse Keybinds 0 Fullscreen 2 Font 32/SmallcapsGlow Map View 50x44 Zoom Use 0% Tactical HUD 0 Map Filters NONE Filters NONE Steam 1 RUN: 2bd37c25-5508-43db-ac14-6087b052b625